fUSD/lending_fUSD_20240530
["ID","MTS","AMOUNT","RATE_DAILY","PERIOD"]
[328205022,1717057851113,-500.0,0.00029269,7]
[328205023,1717057851122,-500.0,0.0002927,7]
[328205024,1717057851132,-500.0,0.0002927,7]
[328205025,1717057851141,-837.56,0.0002927,7]
[328205026,1717057851151,-809.47,0.0002927,7]
[328205027,1717057851159,-500.0,0.0002927,7]
[328205028,1717057851168,-500.0,0.0002927,7]
[328205029,1717057851177,-831.08,0.0002927,7]
[328205030,1717057851187,-500.0,0.0002927,7]
[328205031,1717057851196,-500.0,0.0002927,7]
[328205032,1717057851206,-1068.63,0.0002927,7]
[328205033,1717057851215,-500.0,0.0002927,7]
[328205034,1717057851225,-690.03,0.0002927,7]
[328205035,1717057851234,-500.0,0.0002927,7]
[328205036,1717057851243,-1215.28,0.0002927,7]
[328205037,1717057851252,-500.0,0.0002927,7]
[328205038,1717057851261,-1027.89,0.0002927,7]
[328205039,1717057851270,-500.0,0.0002927,7]
[328205040,1717057851280,-617.87,0.0002927,7]
[328205041,1717057851289,-500.0,0.0002927,7]
[328205042,1717057851298,-1517.43,0.0002927,7]
[328205043,1717057851307,-20000.0,0.0002927,2]
[328205044,1717057851316,-616.38,0.0002927,7]
[328205045,1717057851325,-938.92,0.0002927,7]
[328205046,1717057851335,-500.0,0.0002927,7]
[328205047,1717057851346,-511.14,0.0002927,7]
[328205048,1717057851355,-1207.79,0.0002927,7]
[328205049,1717057851364,-500.0,0.0002927,2]
[328205050,1717057851372,-706.76,0.0002927,7]
[328205051,1717057851381,-632.24,0.0002927,7]
[328205052,1717057851391,-500.0,0.0002927,2]
[328205053,1717057851400,-1103.33,0.0002927,7]
[328205054,1717057851409,-732.87,0.0002927,7]
[328205055,1717057851418,-915.49,0.0002927,7]
[328205056,1717057851426,-539.82862462,0.0002927,7]
[328205057,1717057851435,-710.1,0.0002927,7]
[328205058,1717057851445,-560.91,0.0002927,7]
[328205059,1717057851454,-500.0,0.0002927,7]
[328205060,1717057851463,-505.99,0.0002927,7]
[328205061,1717057851473,-768.36,0.0002927,2]
[328205062,1717057851482,-1324.91,0.0002927,7]
[328205063,1717057851492,-725.99,0.0002927,7]
[328205064,1717057851502,-500.0,0.0002927,7]
[328205065,1717057851635,-500.0,0.0002927,2]
[328205066,1717057851645,-663.08,0.0002927,7]
[328205067,1717057851654,-725.61,0.0002927,7]
[328205068,1717057851664,-500.0,0.0002927,7]
[328205069,1717057851673,-529.41,0.0002927,7]
[328205070,1717057851682,-870.34,0.0002927,7]
[328205071,1717057851691,-500.0,0.0002927,7]
[328205072,1717057851700,-674.37,0.0002927,7]
[328205073,1717057851710,-566.13,0.0002927,7]
[328205074,1717057851723,-500.0,0.0002927,7]
[328205075,1717057851733,-500.0,0.0002927,7]
[328205076,1717057851742,-500.0,0.0002927,7]
[328205077,1717057851751,-500.0,0.0002927,7]
[328205078,1717057851762,-500.0,0.0002927,7]
[328205079,1717057851771,-500.0,0.0002927,7]
[328205080,1717057851780,-1333.95,0.0002927,7]
[328205081,1717057851791,-181.04193208,0.0002927,7]
[328205082,1717057852224,-357.94806792,0.0002927,7]
[328205083,1717057852235,-500.0,0.0002927,7]
[328205084,1717057852244,-621.55,0.0002927,7]
[328205085,1717057852253,-500.0,0.0002927,7]
[328205086,1717057852263,-500.0,0.0002927,7]
[328205087,1717057852273,-461.46582157,0.0002927,7]
[328205088,1717057852285,-38.53417843,0.0002927,7]
[328205089,1717057852296,-500.0,0.0002927,7]
[328205090,1717057852305,-92.09868595,0.0002927,7]
[328205091,1717057852316,-407.90131405,0.0002927,7]
[328205092,1717057852327,-500.0,0.0002927,7]
[328205093,1717057852338,-500.0,0.0002927,7]
[328205094,1717057852351,-487.33696559,0.0002927,7]
[328205095,1717057852360,-500.0,0.0002927,7]
[328205096,1717057852369,-500.0,0.0002927,7]
[328205097,1717057852378,-500.0,0.0002927,7]
[328205098,1717057852387,-500.0,0.0002927,7]
[328205099,1717057852396,-163.83496388,0.0002927,7]
[328205100,1717057852405,-602.35257383,0.0002927,7]
[328205101,1717057852423,-44.11742617,0.0002927,7]
[328205102,1717057852432,-500.0,0.0002927,7]
[328205103,1717057852442,-500.0,0.0002927,7]
[328205104,1717057852451,-500.0,0.0002927,7]
[328205105,1717057852460,-542.29,0.0002927,7]
[328205106,1717057852469,-722.45,0.0002927,7]
[328205107,1717057852478,-612.43,0.0002927,7]
[328205108,1717057852487,-500.0,0.0002927,7]
[328205109,1717057852496,-650.39,0.0002927,7]
[328205110,1717057852506,-500.0,0.0002927,7]
[328205111,1717057852515,-500.0,0.0002927,7]
[328205112,1717057852524,-500.0,0.0002927,7]
[328205113,1717057852534,-599.14,0.0002927,7]
[328205114,1717057852543,-500.0,0.0002927,7]
[328205115,1717057852552,-500.0,0.0002927,7]
[328205116,1717057852561,-500.0,0.0002927,7]
[328205117,1717057852571,-591.81,0.0002927,7]
[328205118,1717057852580,-500.0,0.0002927,7]
[328205119,1717057852590,-500.0,0.0002927,7]
[328205120,1717057852600,-628.05,0.0002927,7]
[328205121,1717057852609,-704.92,0.0002927,7]
[328205122,1717057852617,-797.28,0.0002927,7]
[328205123,1717057852627,-500.0,0.0002927,7]
[328205124,1717057852636,-620.78,0.0002927,7]
[328205125,1717057852645,-500.0,0.0002927,7]
[328205126,1717057852654,-790.77,0.0002927,7]
[328205127,1717057852663,-234.67,0.0002927,7]
[328205128,1717057852672,-604.15,0.0002927,7]
[328205129,1717057852681,-500.0,0.0002927,7]
[328205130,1717057852690,-500.0,0.0002927,7]
[328205131,1717057852700,-500.0,0.0002927,7]
[328205132,1717057852709,-356.52832165,0.0002927,7]
[328205133,1717057852719,-500.0,0.0002927,7]
[328205134,1717057852732,-524.41375259,0.0002927,7]
[328205135,1717057852741,-500.0,0.0002927,7]
[328205136,1717057852751,-500.0,0.0002927,7]
[328205137,1717057852760,-500.0,0.0002927,7]
[328205138,1717057852769,-500.0,0.0002927,7]
[328205139,1717057852778,-500.0,0.0002927,7]
[328205140,1717057852788,-500.0,0.0002927,7]
[328205141,1717057852800,-500.0,0.0002927,7]
[328205142,1717057852809,-500.0,0.0002927,7]
[328205143,1717057852818,-500.0,0.0002927,7]
[328205144,1717057852827,-500.0,0.0002927,7]
[328205145,1717057852836,-500.0,0.0002927,7]
[328205146,1717057852845,-500.0,0.0002927,7]
[328205147,1717057852857,-500.0,0.0002927,7]
[328205148,1717057852866,-500.0,0.0002927,7]
[328205149,1717057852876,-630.68,0.0002927,7]
[328205150,1717057852886,-500.0,0.0002927,7]
[328205151,1717057852895,-609.27,0.0002927,7]
[328205152,1717057852903,-500.0,0.0002927,7]
[328205153,1717057852913,-533.90876364,0.0002927,7]
[328205154,1717057852922,-500.0,0.0002927,7]
[328205155,1717057852931,-1208.5,0.0002927,7]
[328205156,1717057852940,-565.08,0.0002927,7]
[328205157,1717057852949,-500.0,0.0002927,7]
[328205158,1717057852958,-500.0,0.0002927,7]
[328205159,1717057852967,-500.0,0.0002927,7]
[328205160,1717057852976,-500.0,0.0002927,7]
[328205161,1717057852985,-500.0,0.0002927,7]
[328205162,1717057852995,-500.0,0.0002927,7]
[328205163,1717057853004,-500.0,0.0002927,7]
[328205164,1717057853013,-500.0,0.0002927,7]
[328205165,1717057853022,-500.0,0.0002927,7]
[328205166,1717057853032,-572.84,0.0002927,7]
[328205167,1717057853041,-500.0,0.0002927,7]
[328205168,1717057853050,-514.68,0.0002927,7]
[328205169,1717057853059,-500.0,0.0002927,7]
[328205170,1717057853068,-500.0,0.0002927,7]
[328205171,1717057853077,-500.0,0.0002927,7]
[328205172,1717057853087,-500.0,0.0002927,7]
[328205173,1717057853096,-500.0,0.0002927,7]
[328205174,1717057853107,-500.0,0.0002927,7]
[328205175,1717057853116,-500.0,0.0002927,7]
[328205176,1717057853126,-500.0,0.0002927,7]
[328205177,1717057853135,-500.0,0.0002927,7]
[328205178,1717057853144,-500.0,0.0002927,7]
[328205179,1717057853154,-500.0,0.0002927,7]
[328205180,1717057853163,-500.0,0.0002927,7]
[328205181,1717057853172,-500.0,0.0002927,7]
[328205182,1717057853182,-500.0,0.0002927,7]
[328205183,1717057853191,-724.98,0.0002927,7]
[328205184,1717057853335,-724.98,0.0002927,7]
[328205185,1717057853344,-500.0,0.0002927,7]
[328205186,1717057853356,-500.0,0.0002927,7]
[328205187,1717057853366,-500.0,0.0002927,7]
[328205188,1717057853375,-500.0,0.0002927,7]
[328205189,1717057853385,-500.0,0.0002927,7]
[328205190,1717057853394,-500.0,0.0002927,7]
[328205191,1717057853404,-500.0,0.0002927,7]
[328205192,1717057853413,-500.0,0.0002927,7]
[328205193,1717057853423,-500.0,0.0002927,7]
[328205194,1717057853433,-500.0,0.0002927,7]
[328205195,1717057853443,-500.0,0.0002927,7]
[328205196,1717057853452,-500.0,0.0002927,7]
[328205197,1717057853462,-500.0,0.0002927,7]
[328205198,1717057853471,-500.0,0.0002927,7]
[328205199,1717057853481,-500.0,0.0002927,7]
[328205200,1717057853491,-500.0,0.0002927,7]
[328205201,1717057853500,-500.0,0.0002927,7]
[328205202,1717057853509,-5328.14,0.0002927,7]
[328205203,1717057853518,-500.0,0.0002927,7]
[328205204,1717057853528,-500.0,0.0002927,7]
[328205205,1717057853537,-500.0,0.0002927,7]
[328205206,1717057853546,-500.0,0.0002927,7]
[328205207,1717057853556,-679.76,0.0002927,7]
[328205208,1717057853565,-500.0,0.0002927,7]
[328205209,1717057853574,-500.0,0.0002927,7]
[328205210,1717057853583,-524.5587524,0.0002927,7]
[328205211,1717057853592,-500.0,0.0002927,7]
[328205212,1717057853603,-500.0,0.0002927,7]
[328205213,1717057853613,-500.0,0.0002927,7]
[328205214,1717057853622,-500.0,0.0002927,7]
[328205215,1717057853632,-500.0,0.0002927,7]
[328205216,1717057853642,-500.0,0.0002927,7]
[328205217,1717057853652,-500.0,0.0002927,7]
[328205218,1717057853662,-500.0,0.0002927,7]
[328205219,1717057853671,-500.0,0.0002927,7]
[328205220,1717057853681,-500.0,0.0002927,7]
[328205221,1717057853690,-378.08044343,0.0002927,7]
[328205222,1717057853704,-121.91955657,0.0002927,7]
[328205223,1717057853717,-500.0,0.0002927,7]
[328205224,1717057853727,-500.0,0.0002927,7]
[328205225,1717057853736,-1213.48,0.0002927,7]
[328205226,1717057853745,-550.98,0.0002927,7]
[328205227,1717057853756,-500.0,0.0002927,7]
[328205228,1717057853767,-500.0,0.0002927,7]
[328205229,1717057853776,-500.0,0.0002927,7]
[328205230,1717057853786,-500.0,0.0002927,7]
[328205231,1717057853798,-238.10762508,0.0002927,7]
[328205232,1717057853810,-261.89237492,0.0002927,7]
[328205233,1717057853820,-361.37028616,0.0002927,7]
[328205234,1717057853831,-138.62971384,0.0002927,7]
[328205235,1717057853840,-500.0,0.0002927,7]
[328205236,1717057853852,-500.0,0.0002927,7]
[328205237,1717057853861,-500.0,0.0002927,7]
[328205238,1717057853870,-861.37028616,0.0002927,7]
[328205239,1717057853885,-586.00971384,0.0002927,7]
[328205240,1717057853894,-500.0,0.0002927,7]
[328205241,1717057853903,-500.0,0.0002927,7]
[328205242,1717057853913,-443.28270098,0.0002927,7]
[328205243,1717057853925,-56.71729902,0.0002927,7]
[328205244,1717057853935,-500.0,0.0002927,7]
[328205245,1717057853944,-500.0,0.0002927,7]
[328205246,1717057853954,-533.6,0.0002927,7]
[328205247,1717057853963,-138.6703148,0.0002927,7]
[328205248,1717057853975,-361.3296852,0.0002927,7]
[328205249,1717057853984,-311.1803148,0.0002927,7]
[328205250,1717057853996,-188.8196852,0.0002927,7]
[328205251,1717057854006,-500.0,0.0002927,7]
[328205252,1717057854015,-500.0,0.0002927,7]
[328205253,1717057854025,-500.0,0.0002927,7]
[328205254,1717057854034,-500.0,0.0002927,7]
[328205255,1717057854044,-500.0,0.0002927,7]
[328205256,1717057854054,-500.0,0.0002927,7]
[328205257,1717057854064,-500.0,0.0002927,7]
[328205258,1717057854074,-500.0,0.0002927,7]
[328205259,1717057854083,-500.0,0.0002927,7]
[328205260,1717057854093,-2182.01,0.0002927,7]
[328205261,1717057854105,-500.0,0.0002927,7]
[328205262,1717057854115,-500.0,0.0002927,7]
[328205263,1717057854124,-500.0,0.0002927,7]
[328205264,1717057854133,-500.0,0.0002927,7]
[328205265,1717057854143,-500.0,0.0002927,7]
[328205266,1717057854152,-500.0,0.0002927,7]
[328205267,1717057854162,-500.0,0.0002927,7]
[328205268,1717057854171,-500.0,0.0002927,7]
[328205269,1717057854181,-500.0,0.0002927,7]
[328205270,1717057854191,-500.0,0.0002927,7]
[328205271,1717057854201,-500.0,0.0002927,7]
[328205272,1717057854210,-500.0,0.0002927,7]
[328205273,1717057854220,-500.0,0.0002927,7]
[328205274,1717057854230,-500.0,0.0002927,7]
[328205275,1717057854240,-940.49,0.0002927,7]
[328205276,1717057854252,-500.0,0.0002927,7]
[328205277,1717057854272,-500.0,0.0002927,7]
[328205278,1717057854287,-500.0,0.0002927,7]
[328205279,1717057854305,-500.0,0.0002927,7]
[328205280,1717057854324,-2034.44,0.0002927,7]
[328205281,1717057854343,-500.0,0.0002927,7]
[328205282,1717057854365,-500.0,0.0002927,7]
[328205283,1717057854380,-500.0,0.0002927,7]
[328205284,1717057854397,-500.0,0.0002927,7]
[328205285,1717057854411,-505.98,0.0002927,7]
[328205286,1717057854424,-500.0,0.0002927,7]
[328205287,1717057854439,-500.0,0.0002927,7]
[328205288,1717057854455,-500.0,0.0002927,7]
[328205289,1717057854475,-500.0,0.0002927,7]
[328205290,1717057854489,-500.0,0.0002927,7]
[328205291,1717057854501,-500.0,0.0002927,7]
[328205292,1717057854517,-500.0,0.0002927,7]
[328205293,1717057854533,-307.66669845,0.0002927,7]
[328205294,1717057854815,-485.71330155,0.0002927,7]
[328205295,1717057854830,-500.0,0.0002927,7]
[328205296,1717057854845,-115.67490604,0.0002927,7]
[328205297,1717057854879,-1575.56509396,0.0002927,7]
[328205298,1717057854892,-500.0,0.0002927,7]
[328205299,1717057854905,-500.0,0.0002927,7]
[328205300,1717057854919,-500.0,0.0002927,7]
[328205301,1717057854933,-764.23,0.0002927,7]
[328205302,1717057854947,-500.0,0.0002927,7]
[328205303,1717057854960,-500.0,0.0002927,7]
[328205304,1717057854973,-500.0,0.0002927,7]
[328205305,1717057854987,-500.0,0.0002927,7]
[328205306,1717057855001,-1846.15,0.0002927,7]
[328205307,1717057855014,-31.09227276,0.0002927,7]
[328205308,1717057855034,-468.90772724,0.0002927,7]
[328205309,1717057855048,-500.0,0.0002927,7]
[328205310,1717057855061,-500.0,0.0002927,7]
[328205311,1717057855074,-500.0,0.0002927,7]
[328205312,1717057855089,-1269.09,0.0002927,7]
[328205313,1717057855107,-125.25227276,0.0002927,7]
[328205314,1717057855126,-374.74772724,0.0002927,7]
[328205315,1717057855142,-500.0,0.0002927,7]
[328205316,1717057855158,-644.68632193,0.0002927,7]
[328205317,1717057855173,-500.0,0.0002927,7]
[328205318,1717057855188,-500.0,0.0002927,7]
[328205319,1717057855203,-411.86595015,0.0002927,7]
[328205320,1717057855220,-97.59465753,0.0002927,7]
[328205321,1717057855235,-500.0,0.0002927,7]
[328205322,1717057855250,-500.0,0.0002927,7]
[328205323,1717057855264,-509.04,0.0002927,7]
[328205324,1717057855277,-500.0,0.0002927,7]
[328205325,1717057855287,-579.73210665,0.00029271,7]
[328205326,1717057855296,-528.99744303,0.00029271,7]
[328205327,1717057855306,-500.0,0.00029271,7]
[328205328,1717057855316,-987.22743723,0.00029271,2]
[328205329,1717057855327,-561.38112734,0.00029271,7]
[328205330,1717057855337,-500.0,0.00029271,7]
[328205331,1717057855347,-9.70019097,0.00029271,7]
[328205332,1717057855370,-490.29980903,0.00029271,7]
[328205333,1717057855381,-500.0,0.00029271,7]
[328205334,1717057855391,-500.0,0.00029271,7]
[328205335,1717057855403,-500.0,0.00029271,7]
[328205336,1717057855413,-500.0,0.00029271,7]
[328205337,1717057855423,-153.86761644,0.00029271,7]
[328205338,1717057855434,-500.0,0.00029271,7]
[328205339,1717057855444,-500.0,0.00029271,7]
[328205340,1717057855454,-500.0,0.00029271,7]
[328205341,1717057855464,-545.85344596,0.00029271,7]
[328205342,1717057855473,-500.0,0.00029271,7]
[328205343,1717057855483,-500.0,0.00029271,7]
[328205344,1717057855492,-500.0,0.00029271,7]
[328205345,1717057855502,-500.0,0.00029271,7]
[328205346,1717057855512,-500.0,0.00029271,7]
[328205347,1717057855521,-500.0,0.00029271,7]
[328205348,1717057855530,-500.0,0.00029271,7]
[328205349,1717057855539,-500.0,0.00029271,7]
[328205350,1717057855548,-500.0,0.00029271,7]
[328205351,1717057855860,-500.0,0.00029271,7]
[328205352,1717057855887,-500.0,0.00029271,2]
[328205353,1717057855902,-311.75662327,0.00029271,7]
[328205354,1717057855912,-500.0,0.00029271,2]
[328205355,1717057855922,-500.0,0.00029271,7]
[328205356,1717057855931,-500.0,0.00029271,7]
[328205357,1717057855941,-500.0,0.00029271,7]
[328205358,1717057855950,-500.0,0.00029271,7]
[328205359,1717057855960,-516.44773508,0.00029271,7]
[328205360,1717057855969,-531.74956651,0.00029271,7]
[328205361,1717057855978,-500.0,0.00029271,7]
[328205362,1717057855987,-500.0,0.00029271,7]
[328205363,1717057855996,-528.97386031,0.00029271,7]
[328205364,1717057856007,-500.0,0.00029271,7]
[328205365,1717057856017,-500.0,0.00029271,7]
[328205366,1717057856026,-500.0,0.00029271,7]
[328205367,1717057856036,-500.0,0.00029271,7]
[328205368,1717057856046,-500.0,0.00029271,7]
[328205369,1717057856056,-500.0,0.00029271,7]
[328205370,1717057856067,-500.0,0.00029271,7]
[328205371,1717057856077,-500.0,0.00029271,7]
[328205372,1717057856087,-500.0,0.00029271,7]
[328205373,1717057856096,-500.0,0.00029271,7]
[328205374,1717057856106,-471.62405313,0.00029271,7]
[328205375,1717057856118,-28.37594687,0.00029271,7]
[328205376,1717057856127,-500.0,0.00029271,7]
[328205377,1717057856136,-154.22774659,0.00029271,7]
[328205378,1717057856194,-380.93545697,0.00029271,7]
[328205379,1717057856203,-500.0,0.00029271,7]
[328205380,1717057856212,-500.0,0.00029271,7]
[328205381,1717057856221,-500.0,0.00029271,7]
[328205382,1717057856231,-500.0,0.00029271,7]
[328205383,1717057856240,-500.0,0.00029271,7]
[328205384,1717057856249,-544.19406574,0.00029271,7]
[328205385,1717057856259,-500.0,0.00029271,7]
[328205386,1717057856268,-500.0,0.00029271,7]
[328205387,1717057856277,-560.95,0.00029271,2]
[328205388,1717057856288,-500.0,0.00029271,7]
[328205389,1717057856297,-526.47528505,0.00029271,7]
[328205390,1717057856306,-500.0,0.00029271,7]
[328205391,1717057856315,-500.0,0.00029271,7]
[328205392,1717057856325,-527.4025217,0.00029271,7]
[328205393,1717057856334,-500.0,0.00029271,7]
[328205394,1717057856344,-500.0,0.00029271,7]
[328205395,1717057856356,-311.16434841,0.00029271,7]
[328205396,1717057856364,-500.0,0.00029271,7]
[328205397,1717057856373,-500.0,0.00029271,7]
[328205398,1717057856382,-500.0,0.00029271,7]
[328205399,1717057856391,-500.0,0.00029271,7]
[328205400,1717057856400,-500.0,0.00029271,7]
[328205401,1717057856409,-1007.10240862,0.00029271,2]
[328205402,1717057856417,-500.0,0.00029271,7]
[328205403,1717057856426,-500.0,0.00029271,2]
[328205404,1717057856435,-500.0,0.00029271,7]
[328205405,1717057856445,-517.98243808,0.00029271,7]
[328205406,1717057856454,-500.0,0.00029271,7]
[328205407,1717057856463,-526.01603339,0.00029271,7]
[328205408,1717057856472,-518.99814357,0.00029271,7]
[328205409,1717057856482,-532.80773802,0.00029271,7]
[328205410,1717057856491,-500.0,0.00029271,7]
[328205411,1717057856500,-500.0,0.00029271,7]
[328205412,1717057856510,-500.0,0.00029271,7]
[328205413,1717057856520,-554.33882119,0.00029271,7]
[328205414,1717057856530,-500.0,0.00029271,7]
[328205415,1717057856539,-500.0,0.00029271,7]
[328205416,1717057856548,-500.0,0.00029271,7]
[328205417,1717057856557,-173.3540168,0.00029271,7]
[328205418,1717057856569,-326.6459832,0.00029271,7]
[328205419,1717057856577,-500.0,0.00029271,7]
[328205420,1717057856586,-509.98067834,0.00029271,7]
[328205421,1717057856595,-508.00233665,0.00029271,7]
[328205422,1717057856606,-500.0,0.00029271,7]
[328205423,1717057856615,-510.6039175,0.00029271,7]
[328205424,1717057856625,-500.0,0.00029271,7]
[328205425,1717057856634,-323.60306593,0.00029271,7]
[328205426,1717057856710,-176.39693407,0.00029271,7]
[328205427,1717057856719,-538.35001901,0.00029271,7]
[328205428,1717057856734,-500.0,0.00029271,7]
[328205429,1717057856743,-500.0,0.00029271,7]
[328205430,1717057856752,-545.46116562,0.00029271,7]
[328205431,1717057856761,-500.0,0.00029271,7]
[328205432,1717057856773,-191.31288246,0.00029271,7]
[328205433,1717057856784,-320.31637533,0.00029271,7]
[328205434,1717057856794,-509.85113076,0.00029271,7]
[328205435,1717057856804,-69.31061173,0.00029271,7]
[328205436,1717057856821,-430.68938827,0.00029271,7]
[328205437,1717057856830,-434.61061173,0.00029271,7]
[328205438,1717057856841,-65.38938827,0.00029271,7]
[328205439,1717057856850,-366.77061173,0.00029271,7]
[328205440,1717057856862,-133.22938827,0.00029271,7]
[328205441,1717057856874,-234.53919679,0.00029307,2]
[328205442,1717057856884,-467.24261111,0.00029307,2]
[328205443,1717057856893,-150.0,0.00029308,2]
[328205444,1717057856902,-380.70037141,0.00029309,2]
[328205445,1717057856911,-150.0,0.00029318,2]
[328205446,1717057856920,-3279.49153882,0.00029374,2]
[328205447,1717057856929,-14874.56957638,0.00029374,2]
[328205448,1717057856939,-150.0,0.00029438,2]
[328205449,1717057856948,-166.92112578,0.00029443,2]
[328205450,1717057856957,-3299.43671784,0.00029443,2]
[328205451,1717057856969,-1420.49192101,0.00029443,2]
[328205452,1717057856980,-1179.42931302,0.00029443,2]
[328205453,1717057856989,-234.53919679,0.00029443,2]
[328205454,1717057856998,-375.5271,0.00029443,2]
[328205455,1717057857008,-166.54369999,0.00029444,2]
[328205456,1717057857017,-467.24261111,0.00029444,2]
[328205457,1717057857026,-150.0,0.00029486,2]
[328205458,1717057857035,-226.23265054,0.000295,3]
[328205459,1717057857044,-1015.71026207,0.00029512,2]
[328205460,1717057857052,-150.0,0.00029512,2]
[328205461,1717057857061,-150.0,0.00029527,2]
[328205462,1717057857070,-150.0,0.00029528,2]
[328205463,1717057857079,-230.53609246,0.00029534,2]
[328205464,1717057857089,-500.0,0.00029542,7]
[328205465,1717057857097,-369.28798446,0.00029542,2]
[328205466,1717057857108,-4124.90288243,0.00029543,11]
[328205467,1717057857119,-5999.65560004,0.00029543,11]
[328205468,1717057857130,-5055.82601032,0.00029543,11]
[328205469,1717057857141,-4928.21999907,0.00029543,11]
[328205470,1717057857391,-258.0353847,0.00028996,2]
[328205471,1717057857401,-536695.15221793,0.00029543,11]
[328205472,1717057857409,-22019.84292161,0.00029543,2]
[328205473,1717057857419,-454.67431915,0.00029543,2]
[328205474,1717057857428,-7576.2975214,0.00029543,2]
[328205475,1717057857438,-500.0,0.00029543,7]
[328205476,1717057857446,-572.96385061,0.00029543,7]
[328205477,1717057857456,-500.0,0.00029543,7]
[328205478,1717057857466,-500.0,0.00029543,7]
[328205479,1717057857475,-500.0,0.00029543,7]
[328205480,1717057857486,-556.43266036,0.00029543,7]
[328205481,1717057857496,-450.13451552,0.00029543,7]
[328205482,1717057857505,-500.0,0.00029543,7]
[328205483,1717057857516,-500.0,0.00029543,7]
[328205484,1717057857525,-500.0,0.00029543,2]
[328205485,1717057857535,-553.54328051,0.00029543,7]
[328205486,1717057857544,-500.0,0.00029543,7]
[328205487,1717057857553,-500.0,0.00029543,7]
[328205488,1717057857563,-500.0,0.00029543,7]
[328205489,1717057857573,-500.0,0.00029543,7]
[328205490,1717057857582,-524.23574327,0.00029543,7]
[328205491,1717057857591,-500.0,0.00029543,7]
[328205492,1717057857600,-500.0,0.00029543,7]
[328205493,1717057857611,-500.0,0.00029543,7]
[328205494,1717057857620,-500.0,0.00029543,7]
[328205495,1717057857631,-500.0,0.00029543,7]
[328205496,1717057857642,-500.0,0.00029543,7]
[328205497,1717057857651,-500.0,0.00029543,7]
[328205498,1717057857662,-500.0,0.00029543,7]
[328205499,1717057857671,-500.0,0.00029543,7]
[328205500,1717057857681,-493.00106058,0.00029543,7]
[328205501,1717057857690,-500.0,0.00029543,7]
[328205502,1717057857700,-559.67906579,0.00029543,7]
[328205503,1717057857709,-500.0,0.00029543,7]
[328205504,1717057857723,-531.10531217,0.00029543,7]
[328205505,1717057857732,-500.0,0.00029543,7]
[328205506,1717057857742,-500.0,0.00029543,7]
[328205507,1717057857751,-558.2518915,0.00029543,7]
[328205508,1717057857761,-500.0,0.00029543,7]
[328205509,1717057857771,-500.0,0.00029543,7]
[328205510,1717057857780,-514.09987292,0.00029543,7]
[328205511,1717057857789,-500.0,0.00029543,7]
[328205512,1717057857799,-500.0,0.00029543,7]
[328205513,1717057857808,-639.62327753,0.00029543,7]
[328205514,1717057857818,-500.0,0.00029543,7]
[328205515,1717057857827,-500.0,0.00029543,7]
[328205516,1717057857836,-500.0,0.00029543,7]
[328205517,1717057857845,-500.0,0.00029543,7]
[328205518,1717057857854,-548.32677787,0.00029543,7]
[328205519,1717057857863,-500.0,0.00029543,7]
[328205520,1717057857873,-500.0,0.00029543,7]
[328205521,1717057857883,-500.0,0.00029543,7]